Workbook

Sheet QuickBooks Desktop Export Tips

Sheet Sheet1
F1: Type | H1: Date | J1: Num | L1: Name | N1: Memo | P1: Split | R1: Debit | T1: Credit | V1: Balance
B2: 99999 - | V2: 0.2
F3: General Journal | H3: 2022-02-28 | J3: 2099 | P3: Deposits In Transit | T3: 59.94 | V3: -59.74
F4: General Journal | H4: 2022-06-30 | J4: 2108 | P4: Deposits In Transit | T4: 353.66 | V4: -413.4
F5: General Journal | H5: 2022-08-31 | J5: 2116 | P5: Deposits In Transit | T5: 41.94 | V5: -455.34
F6: General Journal | H6: 2022-10-31 | J6: 2122 | P6: Deposits In Transit | T6: 85.17 | V6: -540.51
F7: General Journal | H7: 2022-12-31 | J7: 2127 | P7: Deposits In Transit | T7: 39.88 | V7: -580.39
F8: General Journal | H8: 2022-12-31 | J8: 2143 | P8: 244-000 · Accrued Sick Leave | R8: 581 | V8: 0.61
B9: Total 99999 - | R9: =ROUND(SUM(R2:R8),5) -> 581 | T9: =ROUND(SUM(T2:T8),5) -> 580.59 | V9: =V8 -> 0.61
B10: 131-100 · Operation & Main Town Square | V10: 260994.81
F11: Liability Check | H11: 2022-01-04 | J11: E-pay | L11: United States Treasury | N11: 61-0729732 QB Tracking # -630395438 | P11: -SPLIT- | T11: 3754.88 | V11: 257239.93
F12: Check | H12: 2022-01-04 | J12: 132591 | L12: Diamond Maps | N12: 3623 | P12: 620-000 · Materials & Supplies | T12: 228 | V12: 257011.93
F13: Check | H13: 2022-01-04 | J13: 132592 | L13: CITCO Water | N13: S100168756.004 S100169019.002 S100172334.001 | P13: 620-000 · Materials & Supplies | T13: 1856.99 | V13: 255154.94
F14: Check | H14: 2022-01-04 | J14: ACH | L14: Armstrong | P14: 675-500 · Miscellaneous Expense - General | T14: 226.77 | V14: 254928.17
F15: Check | H15: 2022-01-04 | J15: ACH | L15: Anthem Life | P15: 659-200 · Disability Insurance | T15: 153.7 | V15: 254774.47
F16: Paycheck | H16: 2022-01-05 | J16: DD1353 | L16: Andrea C McCoy | N16: Direct Deposit | P16: -SPLIT- | R16: 0 | V16: 254774.47
F17: Paycheck | H17: 2022-01-05 | J17: DD1362 | L17: Teresa D Porter | N17: Direct Deposit | P17: -SPLIT- | R17: 0 | V17: 254774.47
F18: Paycheck | H18: 2022-01-05 | J18: DD1364 | L18: Tim R Webb | N18: Direct Deposit | P18: -SPLIT- | R18: 0 | V18: 254774.47
F19: Paycheck | H19: 2022-01-05 | J19: DD1360 | L19: Robert E Hicks | N19: Direct Deposit | P19: -SPLIT- | R19: 0 | V19: 254774.47
F20: Paycheck | H20: 2022-01-05 | J20: DD1354 | L20: Caleb D Porter | N20: Direct Deposit | P20: -SPLIT- | R20: 0 | V20: 254774.47
F21: Paycheck | H21: 2022-01-05 | J21: DD1355 | L21: Donavon C Hayden | N21: Direct Deposit | P21: -SPLIT- | R21: 0 | V21: 254774.47
F22: Paycheck | H22: 2022-01-05 | J22: DD1356 | L22: Henry D Hampton | N22: Direct Deposit | P22: -SPLIT- | R22: 0 | V22: 254774.47
F23: Paycheck | H23: 2022-01-05 | J23: DD1357 | L23: Kenneth W Howard | N23: Direct Deposit | P23: -SPLIT- | R23: 0 | V23: 254774.47
F24: Paycheck | H24: 2022-01-05 | J24: DD1358 | L24: Morgan W Opell | N24: Direct Deposit | P24: -SPLIT- | R24: 0 | V24: 254774.47
F25: Paycheck | H25: 2022-01-05 | J25: DD1359 | L25: Phillip M Slone | N25: Direct Deposit | P25: -SPLIT- | R25: 0 | V25: 254774.47
F26: Paycheck | H26: 2022-01-05 | J26: DD1361 | L26: Ryan M Suttles | N26: Direct Deposit | P26: -SPLIT- | R26: 0 | V26: 254774.47
F27: Paycheck | H27: 2022-01-05 | J27: DD1363 | L27: Thomas A McCalvin | N27: Direct Deposit | P27: -SPLIT- | R27: 0 | V27: 254774.47
F28: Liability Check | H28: 2022-01-05 | L28: QuickBooks Payroll Service | N28: Created by Payroll Service on 01/04/2022 | P28: 2110 · Direct Deposit Liabilities | T28: 12639.64 | V28: 242134.83
F29: Deposit | H29: 2022-01-05 | N29: Deposit | P29: Deposits In Transit | R29: 16451.7 | V29: 258586.53
F30: Check | H30: 2022-01-05 | J30: ACH | L30: City Of Ashland | P30: 610-100 · Ashland | T30: 78368.32 | V30: 180218.21
F31: Check | H31: 2022-01-07 | J31: ACH | L31: High Performance Computer Services | P31: 635-000 · Contracted Services - Other | T31: 238.35 | V31: 179979.86
F32: Check | H32: 2022-01-10 | J32: 132593 | L32: Boyd County Treasurer | N32: 25 | P32: 650-100 · Fuel Expense | T32: 1430.93 | V32: 178548.93
F33: Check | H33: 2022-01-10 | J33: 132594 | L33: CITCO Water | N33: S100171314.001 | P33: 620-000 · Materials & Supplies | T33: 2395.42 | V33: 176153.51
F34: Check | H34: 2022-01-10 | J34: 132595 | L34: Eastern Telephone & Tech | N34: 62179 | P34: 612-000 · Dues and Subscriptions | T34: 24.95 | V34: 176128.56
F35: Check | H35: 2022-01-10 | J35: 132596 | L35: Pace Analytical Services, LLC | N35: 2200085 | P35: 678-000 · Water Testing | T35: 481.85 | V35: 175646.71
F36: Check | H36: 2022-01-10 | J36: 132597 | L36: Perfection Rubber and Supply | N36: 244752 | P36: 676-600 · Miscellaneous Operating Expense | T36: 581.09 | V36: 175065.62
F37: Check | H37: 2022-01-10 | J37: 132598 | L37: Stoll Keenon Ogden PLLC | N37: 969666 | P37: 633-000 · Legal Services | T37: 73 | V37: 174992.62
F38: Check | H38: 2022-01-10 | J38: 132599 | L38: UniFirst | N38: 1450021724 | P38: 612-000 · Dues and Subscriptions | T38: 89.21 | V38: 174903.41
F39: Check | H39: 2022-01-10 | J39: 132600 | L39: Thompson Tractor & Equipment | N39: 29991 | P39: 620-000 · Materials & Supplies | T39: 96.11 | V39: 174807.3
F40: Check | H40: 2022-01-10 | J40: 132601 | L40: Link Computer Corporation | N40: 151498 | P40: 612-000 · Dues and Subscriptions | T40: 1460.38 | V40: 173346.92
F41: Liability Check | H41: 2022-01-10 | J41: ACH | L41: Kentucky State Treasurer - Withholding | N41: 073430 | P41: 241-200 · Kentucky Withholding Payable | T41: 1578.5 | V41: 171768.42
F42: Liability Check | H42: 2022-01-10 | J42: E-pay | L42: United States Treasury | N42: 61-0729732 QB Tracking # -450720438 | P42: Federal Unemployment Payable | T42: 62.94 | V42: 171705.48
F43: Liability Check | H43: 2022-01-10 | J43: ACH | L43: Treasurer KY Unemployment Insurance Fund | N43: 00600510 | P43: -SPLIT- | T43: 1519.88 | V43: 170185.6
F44: Liability Check | H44: 2022-01-10 | J44: 132602 | L44: Boyd County Fiscal Court | P44: 241-300 · Boyd County Withholding Payable | T44: 1174.16 | V44: 169011.44
F45: Check | H45: 2022-01-11 | J45: ACH | L45: School Utility Tax | P45: 236-100 · Utility & School Tax Payable | T45: 5152.22 | V45: 163859.22
F46: Check | H46: 2022-01-11 | J46: ACH | L46: Kentucky State Treasurer - Sales Tax | P46: 236-000 · Sales Tax Payable | T46: 2628.93 | V46: 161230.29
F47: Check | H47: 2022-01-11 | J47: ACH | L47: Hart Sanitation, Inc. | P47: 675-500 · Miscellaneous Expense - General | T47: 76.5 | V47: 161153.79
F48: Check | H48: 2022-01-11 | J48: ACH | L48: Treasurer KY Unemployment Insurance Fund | P48: 263-300 · KY Unemployment Payable | T48: 52.5 | V48: 161101.29
F49: Check | H49: 2022-01-11 | J49: ACH | L49: Delta Dental | P49: 659-100 · Dental Insurance | T49: 566.2 | V49: 160535.09
F50: Check | H50: 2022-01-12 | J50: ACH | L50: KY Retirement Systems | P50: 420-000 · Retirement Plan Expenses | T50: 11698.35 | V50: 148836.74
F51: Check | H51: 2022-01-12 | J51: ACH | L51: Columbia Gas | P51: 617-100 · Columbia Gas - Operation | T51: 624.34 | V51: 148212.4
F52: Check | H52: 2022-01-13 | J52: ACH | L52: Anthem Blue | P52: 659-000 · Health Insurance | T52: 32 | V52: 148180.4
F53: Check | H53: 2022-01-14 | J53: 132606 | L53: Angelia Smith | N53: VOID: Deposit/Fee Refund for 103460-1 | P53: 676-600 · Miscellaneous Operating Expense | R53: 0 | V53: 148180.4
F54: Check | H54: 2022-01-14 | J54: 132607 | L54: Kentucky Underground Protection Inc. | N54: 200653235 | P54: 612-000 · Dues and Subscriptions | T54: 135 | V54: 148045.4
F55: Check | H55: 2022-01-14 | J55: 132608 | L55: UniFirst | N55: 1450021038 | P55: 612-000 · Dues and Subscriptions | T55: 91.91 | V55: 147953.49
F56: Check | H56: 2022-01-14 | J56: 132609 | L56: UniFirst | N56: 1450022480 | P56: 612-000 · Dues and Subscriptions | T56: 89.21 | V56: 147864.28
F57: Liability Check | H57: 2022-01-18 | L57: QuickBooks Payroll Service | N57: Created by Payroll Service on 01/14/2022 | P57: 2110 · Direct Deposit Liabilities | T57: 12807.02 | V57: 135057.26
F58: Check | H58: 2022-01-18 | J58: 132610 | L58: Clay Tire Sales, Inc. | N58: 72592 | P58: 650-200 · Repairs | T58: 92 | V58: 134965.26
F59: Check | H59: 2022-01-18 | J59: ACH | L59: Kaco Health Insurance | P59: 659-000 · Health Insurance | T59: 18457.77 | V59: 116507.49
F60: Check | H60: 2022-01-18 | J60: ACH | L60: Elan | P60: 676-600 · Miscellaneous Operating Expense | T60: 1045.77 | V60: 115461.72
F61: Check | H61: 2022-01-18 | J61: ACH | L61: Lease Services | P61: 675-000 · Copier Lease Expense | T61: 417.71 | V61: 115044.01
F62: Paycheck | H62: 2022-01-19 | J62: DD1365 | L62: Andrea C McCoy | N62: Direct Deposit | P62: -SPLIT- | R62: 0 | V62: 115044.01
F63: Paycheck | H63: 2022-01-19 | J63: DD1368 | L63: Henry D Hampton | N63: Direct Deposit | P63: -SPLIT- | R63: 0 | V63: 115044.01
F64: Paycheck | H64: 2022-01-19 | J64: DD1369 | L64: Kenneth W Howard | N64: Direct Deposit | P64: -SPLIT- | R64: 0 | V64: 115044.01
F65: Paycheck | H65: 2022-01-19 | J65: DD1370 | L65: Morgan W Opell | N65: Direct Deposit | P65: -SPLIT- | R65: 0 | V65: 115044.01
F66: Paycheck | H66: 2022-01-19 | J66: DD1371 | L66: Phillip M Slone | N66: Direct Deposit | P66: -SPLIT- | R66: 0 | V66: 115044.01
F67: Paycheck | H67: 2022-01-19 | J67: DD1376 | L67: Tim R Webb | N67: Direct Deposit | P67: -SPLIT- | R67: 0 | V67: 115044.01
F68: Paycheck | H68: 2022-01-19 | J68: DD1372 | L68: Robert E Hicks | N68: Direct Deposit | P68: -SPLIT- | R68: 0 | V68: 115044.01
F69: Paycheck | H69: 2022-01-19 | J69: DD1374 | L69: Teresa D Porter | N69: Direct Deposit | P69: -SPLIT- | R69: 0 | V69: 115044.01
F70: Paycheck | H70: 2022-01-19 | J70: DD1366 | L70: Caleb D Porter | N70: Direct Deposit | P70: -SPLIT- | R70: 0 | V70: 115044.01
F71: Paycheck | H71: 2022-01-19 | J71: DD1367 | L71: Donavon C Hayden | N71: Direct Deposit | P71: -SPLIT- | R71: 0 | V71: 115044.01
F72: Paycheck | H72: 2022-01-19 | J72: DD1373 | L72: Ryan M Suttles | N72: Direct Deposit | P72: -SPLIT- | R72: 0 | V72: 115044.01
F73: Paycheck | H73: 2022-01-19 | J73: DD1375 | L73: Thomas A McCalvin | N73: Direct Deposit | P73: -SPLIT- | R73: 0 | V73: 115044.01
F74: Check | H74: 2022-01-19 | J74: 132611 | L74: BFMC, INC | N74: January Postage | P74: 635-000 · Contracted Services - Other | T74: 1800 | V74: 113244.01
F75: Check | H75: 2022-01-19 | J75: 132612 | L75: James Family Outfitters | N75: Tom/Phillip | P75: 676-600 · Miscellaneous Operating Expense | T75: 200 | V75: 113044.01
F76: Check | H76: 2022-01-19 | J76: 132613 | L76: CITCO Water | N76: S100167624.002 | P76: 620-000 · Materials & Supplies | T76: 83.16 | V76: 112960.85
F77: Check | H77: 2022-01-20 | J77: ACH | L77: Aflac | P77: 251-000 · Health Insurance Payable | T77: 212.04 | V77: 112748.81
F78: Liability Check | H78: 2022-01-24 | J78: E-pay | L78: United States Treasury | N78: 61-0729732 QB Tracking # 180219070 | P78: -SPLIT- | T78: 3816.42 | V78: 108932.39
F79: Liability Check | H79: 2022-01-24 | J79: E-pay | L79: United States Treasury | N79: 61-0729732 QB Tracking # 180249070 | P79: -SPLIT- | T79: 418.02 | V79: 108514.37
F80: Check | H80: 2022-01-24 | J80: ACH | L80: Quill | P80: 620-000 · Materials & Supplies | T80: 286.13 | V80: 108228.24
F81: Check | H81: 2022-01-24 | J81: ACH | L81: Enterprise FM Trust | P81: 635-000 · Contracted Services - Other | T81: 2834.38 | V81: 105393.86
F82: Paycheck | H82: 2022-01-26 | J82: 132614 | L82: Mark O Kazee | P82: -SPLIT- | T82: 421.51 | V82: 104972.35
F83: Paycheck | H83: 2022-01-26 | J83: 132615 | L83: Martin J Bays | P83: -SPLIT- | T83: 443.29 | V83: 104529.06
F84: Paycheck | H84: 2022-01-26 | J84: 132616 | L84: Pamela VanHoose | P84: -SPLIT- | T84: 443.29 | V84: 104085.77
F85: Paycheck | H85: 2022-01-26 | J85: 132617 | L85: Robert M McGuire | P85: -SPLIT- | T85: 413.29 | V85: 103672.48
F86: Paycheck | H86: 2022-01-26 | J86: 132618 | L86: Samuel H Hampton III | P86: -SPLIT- | T86: 429.29 | V86: 103243.19
F87: Check | H87: 2022-01-26 | J87: 132621 | L87: CITCO Water | N87: S100164815.003 S100174248.001 S100174117.001 | P87: 620-000 · Materials & Supplies | T87: 4102.87 | V87: 99140.32
F88: Check | H88: 2022-01-26 | J88: 132622 | L88: Bell Engineering | N88: 210950 | P88: 635-000 · Contracted Services - Other | T88: 3500 | V88: 95640.32
F89: Check | H89: 2022-01-26 | J89: 132623 | L89: High Performance Computer Services | N89: 23163 23225 | P89: 635-000 · Contracted Services - Other | T89: 345.05 | V89: 95295.27
F90: Check | H90: 2022-01-28 | J90: ACH | L90: Kentucky Power Company | P90: 615-200 · KENTUCKY POWER | T90: 7347.82 | V90: 87947.45
F91: Check | H91: 2022-01-28 | J91: ACH | L91: Verizon Wireless | P91: 616-200 · Cell Phones | T91: 712.43 | V91: 87235.02
F92: Check | H92: 2022-01-31 | J92: 132614 | L92: UniFirst | N92: 1450023198 | P92: 612-000 · Dues and Subscriptions | T92: 89.21 | V92: 87145.81
F93: Check | H93: 2022-01-31 | J93: 132615 | L93: UniFirst | N93: 1450023922 | P93: 612-000 · Dues and Subscriptions | T93: 90.05 | V93: 87055.76
F94: Check | H94: 2022-01-31 | J94: 132616 | L94: CITCO Water | N94: S100174509.001 S100157438.003 S100162841.003 | P94: 620-000 · Materials & Supplies | T94: 3803.8 | V94: 83251.96
F95: Liability Check | H95: 2022-01-31 | J95: E-pay | L95: United States Treasury | N95: 61-0729732 QB Tracking # 1591070070 | P95: -SPLIT- | T95: 4203.34 | V95: 79048.62
F96: Check | H96: 2022-01-31 | J96: 132618 | L96: BFMC, INC | N96: 24843 | P96: 635-000 · Contracted Services - Other | T96: 629.05 | V96: 78419.57
F97: Transfer | H97: 2022-01-31 | N97: Funds Transfer | P97: 131-110 · Water Revenue - Town Square | R97: 150000 | V97: 228419.57
F98: Check | H98: 2022-01-31 | J98: ACH | L98: Hilti | P98: 612-000 · Dues and Subscriptions | T98: 103 | V98: 228316.57
F99: Deposit | H99: 2022-01-31 | N99: Interest | P99: Interest Income | R99: 6.71 | V99: 228323.28
F100: Liability Check | H100: 2022-02-01 | L100: QuickBooks Payroll Service | N100: Created by Payroll Service on 01/31/2022 | P100: 2110 · Direct Deposit Liabilities | T100: 13829.41 | V100: 214493.87
F101: Check | H101: 2022-02-01 | J101: 132619 | L101: Kim Keffer | N101: Credit Refund for 102383-1 | P101: 676-600 · Miscellaneous Operating Expense | T101: 19.94 | V101: 214473.93
F102: Check | H102: 2022-02-01 | J102: 132620 | L102: Sean Farrington | N102: Credit Refund for 107368-2 | P102: 676-600 · Miscellaneous Operating Expense | T102: 20.05 | V102: 214453.88
F103: Check | H103: 2022-02-01 | J103: 132624 | L103: Kelly Hunley | N103: Credit Refund for 108223-3 | P103: 676-600 · Miscellaneous Operating Expense | T103: 19.95 | V103: 214433.93
F104: Check | H104: 2022-02-01 | J104: 132625 | L104: CITCO Water | N104: S100141848.003 | P104: 620-000 · Materials & Supplies | T104: 15730 | V104: 198703.93
F105: Check | H105: 2022-02-01 | J105: 132626 | L105: BFMC, INC | N105: 24860 | P105: 635-000 · Contracted Services - Other | T105: 100.63 | V105: 198603.3
F106: Paycheck | H106: 2022-02-02 | J106: DD1377 | L106: Andrea C McCoy | N106: Direct Deposit | P106: -SPLIT- | R106: 0 | V106: 198603.3
F107: Paycheck | H107: 2022-02-02 | J107: DD1378 | L107: Caleb D Porter | N107: Direct Deposit | P107: -SPLIT- | R107: 0 | V107: 198603.3
F108: Paycheck | H108: 2022-02-02 | J108: DD1379 | L108: Donavon C Hayden | N108: Direct Deposit | P108: -SPLIT- | R108: 0 | V108: 198603.3
F109: Paycheck | H109: 2022-02-02 | J109: DD1380 | L109: Henry D Hampton | N109: Direct Deposit | P109: -SPLIT- | R109: 0 | V109: 198603.3
F110: Paycheck | H110: 2022-02-02 | J110: DD1381 | L110: Kenneth W Howard | N110: Direct Deposit | P110: -SPLIT- | R110: 0 | V110: 198603.3
F111: Paycheck | H111: 2022-02-02 | J111: DD1382 | L111: Morgan W Opell | N111: Direct Deposit | P111: -SPLIT- | R111: 0 | V111: 198603.3
F112: Paycheck | H112: 2022-02-02 | J112: DD1383 | L112: Phillip M Slone | N112: Direct Deposit | P112: -SPLIT- | R112: 0 | V112: 198603.3
F113: Paycheck | H113: 2022-02-02 | J113: DD1384 | L113: Robert E Hicks | N113: Direct Deposit | P113: -SPLIT- | R113: 0 | V113: 198603.3
F114: Paycheck | H114: 2022-02-02 | J114: DD1388 | L114: Tim R Webb | N114: Direct Deposit | P114: -SPLIT- | R114: 0 | V114: 198603.3
F115: Paycheck | H115: 2022-02-02 | J115: DD1385 | L115: Ryan M Suttles | N115: Direct Deposit | P115: -SPLIT- | R115: 0 | V115: 198603.3
F116: Paycheck | H116: 2022-02-02 | J116: DD1386 | L116: Teresa D Porter | N116: Direct Deposit | P116: -SPLIT- | R116: 0 | V116: 198603.3
F117: Paycheck | H117: 2022-02-02 | J117: DD1387 | L117: Thomas A McCalvin | N117: Direct Deposit | P117: -SPLIT- | R117: 0 | V117: 198603.3
F118: Check | H118: 2022-02-02 | J118: 132627 | L118: CITCO Water | N118: S100160698.002 S100174812.001 S100173645.001 | P118: -SPLIT- | T118: 6379.63 | V118: 192223.67
F119: Check | H119: 2022-02-02 | J119: 132629 | L119: Laser Print Plus | N119: February Postage | P119: 635-000 · Contracted Services - Other | T119: 1800 | V119: 190423.67
F120: Check | H120: 2022-02-02 | J120: 132630 | L120: Bell Engineering | N120: 210951 | P120: 635-000 · Contracted Services - Other | T120: 2500 | V120: 187923.67
F121: Check | H121: 2022-02-02 | J121: ACH | L121: Anthem Life | P121: 659-200 · Disability Insurance | T121: 153.7 | V121: 187769.97
F122: Check | H122: 2022-02-02 | J122: ACH | L122: Armstrong | P122: 675-500 · Miscellaneous Expense - General | T122: 226.77 | V122: 187543.2
F123: Check | H123: 2022-02-02 | J123: ACH | L123: Kentucky State Treasurer - Sales Tax | P123: 236-000 · Sales Tax Payable | T123: 2642.88 | V123: 184900.32
F124: Check | H124: 2022-02-02 | J124: ACH | L124: School Utility Tax | P124: 236-100 · Utility & School Tax Payable | T124: 5114.32 | V124: 179786
F125: Check | H125: 2022-02-03 | J125: 132636 | L125: UniFirst | N125: 1450024644 | P125: 612-000 · Dues and Subscriptions | T125: 90.05 | V125: 179695.95
F126: Check | H126: 2022-02-03 | J126: 132637 | L126: USA Bluebook | N126: 923673 | P126: 620-000 · Materials & Supplies | T126: 7447.34 | V126: 172248.61
F127: Check | H127: 2022-02-03 | J127: 132638 | L127: Eastern Telephone & Tech | N127: 62955 | P127: 612-000 · Dues and Subscriptions | T127: 24.95 | V127: 172223.66
F128: Check | H128: 2022-02-03 | J128: 132639 | L128: CITCO Water | N128: S100174505.001 | P128: 620-000 · Materials & Supplies | T128: 1066.2 | V128: 171157.46
F129: Liability Check | H129: 2022-02-03 | J129: ACH | L129: Kentucky State Treasurer - Withholding | N129: 073430 | P129: 241-200 · Kentucky Withholding Payable | T129: 1603.25 | V129: 169554.21
F130: Check | H130: 2022-02-07 | J130: ACH | L130: KY Retirement Systems | P130: 420-000 · Retirement Plan Expenses | T130: 11887.58 | V130: 157666.63
F131: Check | H131: 2022-02-07 | J131: ACH | L131: High Performance Computer Services | P131: 635-000 · Contracted Services - Other | T131: 46.2 | V131: 157620.43
F132: Check | H132: 2022-02-08 | J132: 132640 | L132: CITCO Water | N132: S100175045.001 S100175132.001 | P132: 620-000 · Materials & Supplies | T132: 891.91 | V132: 156728.52
F133: Liability Check | H133: 2022-02-08 | J133: E-pay | L133: United States Treasury | N133: 61-0729732 QB Tracking # 1080707266 | P133: -SPLIT- | T133: 418.04 | V133: 156310.48
F134: Check | H134: 2022-02-08 | J134: ACH | L134: Kentuckty Rural Water Association, Inc. | P134: 612-000 · Dues and Subscriptions | T134: 1620 | V134: 154690.48
F135: Check | H135: 2022-02-08 | J135: ACH | L135: City Of Ashland | P135: 610-100 · Ashland | T135: 70933.38 | V135: 83757.1
F136: Check | H136: 2022-02-09 | J136: 132646 | L136: Link Computer Corporation | N136: 152293 | P136: 612-000 · Dues and Subscriptions | T136: 1460.38 | V136: 82296.72
F137: Check | H137: 2022-02-09 | J137: 132647 | L137: Kentucky Underground Protection Inc. | N137: 200653610 | P137: 612-000 · Dues and Subscriptions | T137: 132 | V137: 82164.72
F138: Check | H138: 2022-02-10 | J138: ACH | L138: Columbia Gas | P138: 617-200 · Columbia Gas - Office & Shop | T138: 859.72 | V138: 81305
F139: Check | H139: 2022-02-11 | J139: 132648 | L139: UniFirst | N139: 1450025455 | P139: 612-000 · Dues and Subscriptions | T139: 103.06 | V139: 81201.94
F140: Liability Check | H140: 2022-02-15 | L140: QuickBooks Payroll Service | N140: Created by Payroll Service on 02/14/2022 | P140: 2110 · Direct Deposit Liabilities | T140: 12414.11 | V140: 68787.83
F141: Check | H141: 2022-02-15 | J141: 132649 | L141: CITCO Water | N141: S100174812.002 S100175491.001 | P141: 620-000 · Materials & Supplies | T141: 487.95 | V141: 68299.88
F142: Check | H142: 2022-02-15 | J142: ACH | L142: Elan Credit Card | P142: 675-500 · Miscellaneous Expense - General | T142: 3059.38 | V142: 65240.5
F143: Check | H143: 2022-02-15 | J143: ACH | L143: Hart Sanitation, Inc. | P143: 675-500 · Miscellaneous Expense - General | T143: 41.5 | V143: 65199
F144: Check | H144: 2022-02-15 | J144: ACH | L144: Delta Dental | P144: 659-100 · Dental Insurance | T144: 566.2 | V144: 64632.8
F145: Check | H145: 2022-02-15 | J145: ACH | L145: Quill | P145: 675-500 · Miscellaneous Expense - General | T145: 59.04 | V145: 64573.76
F146: Paycheck | H146: 2022-02-16 | J146: DD1389 | L146: Andrea C McCoy | N146: Direct Deposit | P146: -SPLIT- | R146: 0 | V146: 64573.76
F147: Paycheck | H147: 2022-02-16 | J147: DD1398 | L147: Teresa D Porter | N147: Direct Deposit | P147: -SPLIT- | R147: 0 | V147: 64573.76
F148: Paycheck | H148: 2022-02-16 | J148: DD1394 | L148: Morgan W Opell | N148: Direct Deposit | P148: -SPLIT- | R148: 0 | V148: 64573.76
F149: Paycheck | H149: 2022-02-16 | J149: DD1390 | L149: Caleb D Porter | N149: Direct Deposit | P149: -SPLIT- | R149: 0 | V149: 64573.76
F150: Paycheck | H150: 2022-02-16 | J150: DD1391 | L150: Donavon C Hayden | N150: Direct Deposit | P150: -SPLIT- | R150: 0 | V150: 64573.76
F151: Paycheck | H151: 2022-02-16 | J151: DD1392 | L151: Henry D Hampton | N151: Direct Deposit | P151: -SPLIT- | R151: 0 | V151: 64573.76
F152: Paycheck | H152: 2022-02-16 | J152: DD1393 | L152: Kenneth W Howard | N152: Direct Deposit | P152: -SPLIT- | R152: 0 | V152: 64573.76
F153: Paycheck | H153: 2022-02-16 | J153: DD1395 | L153: Phillip M Slone | N153: Direct Deposit | P153: -SPLIT- | R153: 0 | V153: 64573.76
F154: Paycheck | H154: 2022-02-16 | J154: DD1396 | L154: Robert E Hicks | N154: Direct Deposit | P154: -SPLIT- | R154: 0 | V154: 64573.76
F155: Paycheck | H155: 2022-02-16 | J155: DD1400 | L155: Tim R Webb | N155: Direct Deposit | P155: -SPLIT- | R155: 0 | V155: 64573.76
F156: Paycheck | H156: 2022-02-16 | J156: DD1397 | L156: Ryan M Suttles | N156: Direct Deposit | P156: -SPLIT- | R156: 0 | V156: 64573.76
F157: Paycheck | H157: 2022-02-16 | J157: DD1399 | L157: Thomas A McCalvin | N157: Direct Deposit | P157: -SPLIT- | R157: 0 | V157: 64573.76
F158: Liability Check | H158: 2022-02-16 | J158: E-pay | L158: United States Treasury | N158: 61-0729732 QB Tracking # 1593334266 | P158: -SPLIT- | T158: 3705.06 | V158: 60868.7
F159: Check | H159: 2022-02-16 | J159: 132650 | L159: FASTSIGNS of Ashland | N159: 2188-12603 | P159: 650-000 · Auto & Truck Expenses | T159: 156.98 | V159: 60711.72
F160: Check | H160: 2022-02-16 | J160: ACH | L160: Pace Analytical Services, LLC | P160: 678-000 · Water Testing | T160: 428.1 | V160: 60283.62
F161: Check | H161: 2022-02-16 | J161: ACH | L161: Kaco Health Insurance | P161: 659-000 · Health Insurance | T161: 18457.77 | V161: 41825.85
F162: Check | H162: 2022-02-17 | J162: 132651 | L162: UniFirst | N162: 1450026178 | P162: 612-000 · Dues and Subscriptions | T162: 103.06 | V162: 41722.79
F163: Check | H163: 2022-02-17 | J163: 132652 | L163: CITCO Water | N163: S100163241.002 | P163: 620-000 · Materials & Supplies | T163: 451.74 | V163: 41271.05
F164: Check | H164: 2022-02-18 | J164: ACH | L164: IRS USATAXPYMT PAYROLL TAXES | P164: Payroll Taxes | T164: 692.9 | V164: 40578.15
F165: Check | H165: 2022-02-18 | J165: ACH | L165: IRS USATAXPYMT PAYROLL TAXES | P165: Payroll Taxes | T165: 633.59 | V165: 39944.56
F166: Check | H166: 2022-02-18 | J166: ACH | L166: Lease Services | P166: 675-000 · Copier Lease Expense | T166: 417.71 | V166: 39526.85
F167: Check | H167: 2022-02-18 | J167: ACH | L167: Aflac | P167: 251-000 · Health Insurance Payable | T167: 212.04 | V167: 39314.81
F168: Check | H168: 2022-02-18 | J168: ACH | L168: Anthem Blue | P168: 659-000 · Health Insurance | T168: 7 | V168: 39307.81
F169: Check | H169: 2022-02-22 | J169: ACH | L169: Enterprise FM Trust | P169: 635-000 · Contracted Services - Other | T169: 3260.84 | V169: 36046.97
F170: Paycheck | H170: 2022-02-23 | J170: 132641 | L170: Mark O Kazee | P170: -SPLIT- | T170: 421.5 | V170: 35625.47
F171: Paycheck | H171: 2022-02-23 | J171: 132642 | L171: Martin J Bays | P171: -SPLIT- | T171: 443.29 | V171: 35182.18
F172: Paycheck | H172: 2022-02-23 | J172: 132643 | L172: Pamela VanHoose | P172: -SPLIT- | T172: 443.29 | V172: 34738.89
F173: Paycheck | H173: 2022-02-23 | J173: 132644 | L173: Robert M McGuire | P173: -SPLIT- | T173: 413.29 | V173: 34325.6
F174: Paycheck | H174: 2022-02-23 | J174: 132645 | L174: Samuel H Hampton III | P174: -SPLIT- | T174: 429.29 | V174: 33896.31
F175: Check | H175: 2022-02-24 | J175: 132653 | L175: UniFirst | N175: 1450026987 | P175: 612-000 · Dues and Subscriptions | T175: 94.5 | V175: 33801.81
F176: Check | H176: 2022-02-24 | J176: 132654 | L176: CITCO Water | N176: S100176634.001 | P176: 620-000 · Materials & Supplies | T176: 706.85 | V176: 33094.96
F177: Check | H177: 2022-02-24 | J177: 132655 | L177: Perfection Rubber and Supply | N177: 245326 | P177: 676-600 · Miscellaneous Operating Expense | T177: 69.18 | V177: 33025.78
F178: Check | H178: 2022-02-24 | J178: 132656 | L178: High Performance Computer Services | N178: 23462 | P178: 635-000 · Contracted Services - Other | T178: 95.4 | V178: 32930.38
F179: Check | H179: 2022-02-28 | J179: 132657 | L179: USA Bluebook | N179: 889151/890692 | P179: 620-000 · Materials & Supplies | T179: 664.17 | V179: 32266.21
F180: Check | H180: 2022-02-28 | J180: 132658 | L180: BFMC, INC | N180: 25002/25003 | P180: 635-000 · Contracted Services - Other | T180: 754.82 | V180: 31511.39
F181: Check | H181: 2022-02-28 | J181: 132659 | L181: Laser Print Plus | N181: March Postage | P181: 635-000 · Contracted Services - Other | T181: 1600 | V181: 29911.39
F182: Liability Check | H182: 2022-02-28 | J182: E-pay | L182: United States Treasury | N182: 61-0729732 QB Tracking # -2143717030 | P182: -SPLIT- | T182: 3812.1 | V182: 26099.29
F183: Transfer | H183: 2022-02-28 | N183: Funds Transfer | P183: 131-110 · Water Revenue - Town Square | R183: 200000 | V183: 226099.29
F184: Check | H184: 2022-02-28 | J184: ACH | L184: Kentucky Power Company | P184: 615-200 · KENTUCKY POWER | T184: 6973.5 | V184: 219125.79
F185: Check | H185: 2022-02-28 | J185: ACH | L185: Hilti | P185: 612-000 · Dues and Subscriptions | T185: 103 | V185: 219022.79
F186: Check | H186: 2022-02-28 | J186: ACH | L186: Verizon Wireless | P186: 616-200 · Cell Phones | T186: 712.6 | V186: 218310.19
F187: Deposit | H187: 2022-02-28 | N187: Interest | P187: Interest Income | R187: 3.64 | V187: 218313.83
F188: Liability Check | H188: 2022-03-01 | L188: QuickBooks Payroll Service | N188: Created by Payroll Service on 02/28/2022 | P188: 2110 · Direct Deposit Liabilities | T188: 12741.27 | V188: 205572.56
F189: Check | H189: 2022-03-01 | J189: 132660 | L189: CITCO Water | N189: S100170459.004 S100172334.002 S100175132.002 S100176631.001 | P189: 620-000 · Materials & Supplies | T189: 1484.56 | V189: 204088
F190: Check | H190: 2022-03-01 | J190: 132661 | L190: General Sales Co. | N190: 697820 | P190: 620-000 · Materials & Supplies | T190: 294.76 | V190: 203793.24
F191: Check | H191: 2022-03-01 | J191: 132662 | L191: Boyd County Treasurer | N191: 37 | P191: 650-100 · Fuel Expense | T191: 1498.17 | V191: 202295.07
F192: Check | H192: 2022-03-01 | J192: 132663 | L192: Link Computer Corporation | P192: 612-000 · Dues and Subscriptions | T192: 1489.63 | V192: 200805.44
F193: Check | H193: 2022-03-01 | J193: 132664 | L193: American Welding & Gas, Inc. | N193: 08345050 | P193: 676-600 · Miscellaneous Operating Expense | T193: 92.98 | V193: 200712.46
F194: Check | H194: 2022-03-01 | J194: 132665 | L194: The Cincinnati Life Insurance Co. | N194: #0ARW0 | P194: 657-000 · Insurance - General Liability | T194: 157.66 | V194: 200554.8
F195: Paycheck | H195: 2022-03-02 | J195: DD1401 | L195: Andrea C McCoy | N195: Direct Deposit | P195: -SPLIT- | R195: 0 | V195: 200554.8
F196: Paycheck | H196: 2022-03-02 | J196: DD1402 | L196: Caleb D Porter | N196: Direct Deposit | P196: -SPLIT- | R196: 0 | V196: 200554.8
F197: Paycheck | H197: 2022-03-02 | J197: DD1403 | L197: Donavon C Hayden | N197: Direct Deposit | P197: -SPLIT- | R197: 0 | V197: 200554.8
F198: Paycheck | H198: 2022-03-02 | J198: DD1404 | L198: Henry D Hampton | N198: Direct Deposit | P198: -SPLIT- | R198: 0 | V198: 200554.8
F199: Paycheck | H199: 2022-03-02 | J199: DD1405 | L199: Kenneth W Howard | N199: Direct Deposit | P199: -SPLIT- | R199: 0 | V199: 200554.8
F200: Paycheck | H200: 2022-03-02 | J200: DD1406 | L200: Morgan W Opell | N200: Direct Deposit | P200: -SPLIT- | R200: 0 | V200: 200554.8
... 4300 more rows
